[Event "1st FIDE Olympiad DIS 2023"]
[Site "Belgrade"]
[Date "2023.02.02"]
[Round "4.29"]
[White "Jimenez Moron, Elias"]
[Black "Miheso, Clement Chomu"]
[Result "1-0"]
[ECO "B22"]
[WhiteElo "1967"]
[BlackElo "1615"]
[Annotator "TA"]
[PlyCount "115"]
[EventDate "2023.01.30"]
[EventType "team-tourn"]
[EventCountry "SRB"]
[SourceTitle "playchess.com"]
[Source "ChessBase"]
[SourceQuality "1"]
[WhiteTeam "Panama"]
[BlackTeam "Kenya"]
[WhiteTeamCountry "PAN"]
[BlackTeamCountry "KEN"]
[TimeControl "40/5400+30:1800+30"]

{[%evp 9,115,9,20,26,62,12,77,48,68,66,73,69,73,28,39,23,100,89,99,75,105,59,68,61,86,66,60,18,26,21,25,36,53,25,37,-12,-17,-96,-15,-79,-84,-85,-56,-56,-69,-94,-92,-70,-68,-75,-81,-77,-76,-152,-27,-24,-7,-33,-34,-32,-22,-61,0,-9,-9,-15,-16,-25,-14,-15,-6,-26,0,0,0,0,0,-152,0,0,0,0,0,0,0,0,0,-16,-32,-220,0,0,0,0,0,0,29970,29971,29962,29949,29954,29962,29952,29965,29962,29955,29977,29978]} 1. d4 {[%emt 0:06:07]} e6 {[%emt 0:00:34]} 2. e4 {[%emt 0:00:25]} c5 {[%emt 0:03:46]} 3. c3 {[%emt 0:01:46]} cxd4 {[%emt 0:01:57]} 4. cxd4 {[%emt 0:01:55]} Nc6 {[%emt 0:02:09]} 5. Nf3 {[%emt 0:01:16]} Nf6 {[%emt 0:02:11]} 6. Bd3 {[%emt 0:07:23] B22: Sicilian: 2 c3.} Qb6 {[%emt 0:02:30]} 7. Bc2 {[%emt 0:04:17]} (7. Nc3 $14) 7... Be7 {[%emt 0:02:30]} (7... Nb4 $11) 8. O-O {[%emt 0:00:12] White is better.} O-O {[%emt 0:01:57]} 9. Nc3 {[%emt 0:00:13] [#]} d6 $146 {[%emt 0:00:47]} ({Predecessor:} 9... Nb4 10. Bb3 d6 11. e5 dxe5 12. dxe5 Rd8 13. Qe2 Nfd5 14. a3 Nxc3 15. bxc3 Nd3 {0-1 Sielicki,M-Wyszomirski,K (1690) Warsaw op-B 01 2009 (10)}) 10. a3 {[%emt 0:01:28]} e5 {[%emt 0:05:23]} 11. Na4 {[%emt 0:11:03]} Qc7 {[%emt 0:01:37]} 12. d5 {[%emt 0:01:00]} Nd8 {[%emt 0:01:39]} (12... Na5 $11) 13. h3 {[%emt 0:01:37]} b6 {[%emt 0:01:45]} 14. Bg5 {[%emt 0:01:13]} Bd7 {[%emt 0:01:41]} 15. Nc3 {[%emt 0:00:16]} (15. Bd3 $16) 15... Nb7 {[%emt 0:01:19]} 16. Rc1 {[%emt 0:00:26]} h6 {[%emt 0:01:56]} 17. Bxf6 {[%emt 0:01:57]} Bxf6 {[%emt 0:00:19]} 18. Bb1 {[%emt 0:00:10]} Qd8 {[%emt 0:00:45]} 19. Re1 {[%emt 0:01:33]} Rc8 {[%emt 0:01:02]} 20. Bd3 {[%emt 0:00:33]} Bg5 {[%emt 0:00:49]} 21. Rb1 {[%emt 0:01:56]} Nc5 {[%emt 0:04:34]} 22. Bf1 {[%emt 0:03:38]} (22. Bb5 $14) 22... f5 $11 {[%emt 0:02:59]} 23. Ra1 {[%emt 0:05:23]} (23. Bb5 $11) 23... fxe4 {[%emt 0:01:52]} (23... Nxe4 $1 $17 24. Nxe4 fxe4 25. Rxe4 Qf6) 24. Nxe4 {[%emt 0:00:30]} (24. Nxg5 $1 $11 {keeps the balance.} Qxg5 25. b4 Bxh3 26. bxc5 Rxf2 27. Ra2 (27. Kxf2 $2 {too greedy.} Rf8+ $19) 27... Rxa2 28. Nxa2 Rxc5 29. Rxe4) 24... Nxe4 $17 {[%emt 0:00:29]} 25. Rxe4 {[%emt 0:00:14]} Bf5 {[%emt 0:01:31]} (25... Qf6 {keeps more tension.} 26. Re2 Bxh3 27. Nxe5 Bh4) 26. Rc4 {[%emt 0:01:42]} Qf6 {[%emt 0:01:13]} 27. Nxg5 {[%emt 0:20:49]} Rxc4 {[%emt 0:01:08]} ({But not} 27... Qxg5 $6 28. h4 Qf6 29. Rac1 $11) (27... hxg5 $6 28. Qd2 $11) 28. Bxc4 {[%emt 0:00:25] aiming for Ne6.} Qxg5 {[%emt 0:00:27]} 29. Qc1 {[%emt 0:00:24]} Qg6 {[%emt 0:00:48]} (29... Bxh3 $2 30. Qxg5 hxg5 31. gxh3 $18) 30. Qe3 {[%emt 0:00:10]} Be4 {[%emt 0:02:42][%csl Ge4][%cal Rg6g2]} 31. Qg3 {[%emt 0:00:35]} ({White should try} 31. g3) 31... Qf7 {[%emt 0:01:24]} (31... Qxg3 $17 32. fxg3 Rc8) 32. Rd1 $11 {[%emt 0:00:06]} Qc7 {[%emt 0:01:07]} 33. b3 {[%emt 0:03:06]} Qc5 {[%emt 0:00:35]} 34. a4 {[%emt 0:00:23]} Bh7 {[%emt 0:05:02]} (34... Rf6 {feels hotter.} 35. Qh4 Rf4 36. Qg3 Rf8) 35. Qe3 {[%emt 0:00:17]} Qc7 {[%emt 0:00:21]} (35... Qxe3 $15 36. fxe3 Rc8) 36. Bd3 {[%emt 0:02:04]} Bxd3 {[%emt 0:02:44]} 37. Rxd3 {[%emt 0:00:21][%mdl 4096] Endgame KQR-KQR} Qc2 {[%emt 0:01:36][%cal Of8f2] Strongly threatening ...Rxf2!} 38. Rd2 {[%emt 0:01:08]} Qc1+ {[%emt 0:03:09]} 39. Kh2 {[%emt 0:00:08]} Rc8 {[%emt 0:01:51]} 40. Rd3 {[%emt 0:01:54]} Qb2 {[%emt 0:02:48]} 41. Rd2 {[%emt 0:41:03]} Rc2 {[%emt 0:31:59]} 42. Rxc2 {[%emt 0:00:22]} Qxc2 {[%emt 0:00:04] KQ-KQ} 43. f4 $2 {[%emt 0:00:13]} ({White should play} 43. Qf3 $11) 43... e4 $2 {[%emt 0:01:45]} (43... Qf5 $1 $17 {[%cal Rf5f4]} 44. fxe5 dxe5) 44. Kg3 {[%emt 0:04:03]} Kf7 {[%emt 0:01:18]} 45. a5 {[%emt 0:00:47]} Kf6 {[%emt 0:04:33]} 46. axb6 {[%emt 0:02:18]} axb6 {[%emt 0:00:25]} 47. Qd4+ {[%emt 0:03:41]} Kf5 {[%emt 0:07:20] ...Qc1 would be deadly.} 48. Qxb6 {[%emt 0:00:00]} Qd3+ {[%emt 0:00:00]} 49. Kf2 $2 {[%emt 0:00:00]} (49. Kh2 $1 $15 Qxd5 50. Qe3) 49... Qxd5 $2 {[%emt 0:00:00]} (49... Kxf4 $2 50. Qxd6+ Kg5 51. Qg3+ Kf6 52. Qxd3 exd3 53. Ke3 $18) ({Better is} 49... Qd2+ $19 50. Kg1 Qc1+ 51. Kh2 Qxf4+ 52. Kg1 Qc1+ 53. Kh2 Ke5) 50. Qe3 {[%emt 0:00:00]} Qc6 {[%emt 0:00:00]} 51. g4+ {[%emt 0:00:00]} Kf6 {[%emt 0:00:00]} 52. Qd4+ {[%emt 0:00:00]} Kf7 $2 {[%emt 0:00:00][%mdl 8192]} (52... Kg6 $11) 53. Qc4+ {[%emt 0:00:00] White mates.} Qxc4 {[%emt 0:00:00]} 54. bxc4 {[%emt 0:00:00]} Ke6 {[%emt 0:00:00]} 55. Ke3 {[%emt 0:00:00]} d5 {[%emt 0:00:00]} 56. cxd5+ {[%emt 0:00:00]} Kxd5 {[%emt 0:00:04] [#]} 57. h4 $1 {[%emt 0:00:15][%cal Bh3h4,Bh4h5][%mdl 32]} g6 {[%emt 0:00:00] [#]} 58. h5 $1 {[%emt 0:00:00] Weighted Error Value: White=0.28 (precise) /Black=0.40} 1-0

[Event "1st FIDE Olympiad DIS 2023"]
[Site "Belgrade"]
[Date "2023.02.02"]
[Round "4.30"]
[White "Sadam Ali Sheikh"]
[Black "Osorio, Jesus Camilo"]
[Result "0-1"]
[ECO "D02"]
[WhiteElo "1578"]
[BlackElo "1859"]
[Annotator "NA RC COMBH"]
[PlyCount "78"]
[EventDate "2023.01.30"]
[EventType "team-tourn"]
[EventCountry "SRB"]
[SourceTitle "playchess.com"]
[Source "ChessBase"]
[SourceQuality "1"]
[WhiteTeam "Kenya"]
[BlackTeam "Panama"]
[WhiteTeamCountry "KEN"]
[BlackTeamCountry "PAN"]
[TimeControl "40/5400+30:1800+30"]

1. d4 {[%emt 0:00:31]} d5 {[%emt 0:00:16]} 2. Bf4 {[%emt 0:00:49]} Nf6 {[%emt 0:00:52]} 3. Nf3 {[%emt 0:01:26]} Bf5 {[%emt 0:00:37]} 4. e3 {[%emt 0:00:11]} e6 {[%emt 0:01:52]} 5. Bd3 {[%emt 0:01:48]} Bxd3 {[%emt 0:05:18]} 6. cxd3 {[%emt 0:00:03]} Be7 {[%emt 0:10:12]} 7. Qb3 {[%emt 0:01:54]} Qc8 {[%emt 0:04:44]} 8. Nc3 {[%emt 0:00:10]} Nh5 {[%emt 0:03:45]} 9. Be5 {[%emt 0:09:10]} Nd7 {[%emt 0:04:10]} (9... f6 $5 {[%cal Rf6e5]} 10. Bg3 g5 $14) 10. h3 {[%emt 0:02:04]} Nxe5 {[%emt 0:00:32]} 11. dxe5 {[%emt 0:00:18]} g6 {[%emt 0:00:13]} 12. g4 {[%emt 0:01:11]} Ng7 {[%emt 0:00:10]} 13. Nd4 {[%emt 0:06:19]} (13. d4 $11) 13... c6 {[%emt 0:03:13]} 14. f4 {[%emt 0:02:44]} Bc5 {[%emt 0:07:07]} 15. Rc1 {[%emt 0:02:36]} Bxd4 {[%emt 0:05:18]} 16. exd4 {[%emt 0:00:07]} O-O {[%emt 0:05:06]} 17. Kd2 {[%emt 0:08:51]} f6 {[%emt 0:06:58]} 18. Rhf1 {[%emt 0:00:55]} fxe5 {[%emt 0:05:32]} 19. fxe5 {[%emt 0:02:19]} Qd7 {[%emt 0:06:29]} 20. Qd1 {[%emt 0:16:57]} Rxf1 {[%emt 0:01:15]} 21. Qxf1 {[%emt 0:00:11]} Rf8 {[%emt 0:00:03]} 22. Qe2 {[%emt 0:00:03]} Qe7 {[%emt 0:03:24]} 23. Qe3 {[%emt 0:03:43]} Qb4 {[%emt 0:05:05]} 24. Kc2 {[%emt 0:00:53]} c5 {[%emt 0:07:16]} 25. Ne2 {[%emt 0:03:49]} (25. dxc5 $2 {loses.} d4 26. a3 Qxc5 $19 {[%mdl 64] Pin}) 25... Rc8 {[%emt 0:04:27]} 26. Kb1 {[%emt 0:00:06]} c4 {[%emt 0:00:13]} 27. a3 {[%emt 0:03:44]} Qb3 {[%emt 0:00:55]} 28. Rc3 {[%emt 0:01:34]} (28. Nc3 $14) 28... Qd1+ {[%emt 0:00:13]} 29. Rc1 {[%emt 0:00:35]} Qb3 {[%emt 0:00:34]} 30. Rc3 {[%emt 0:00:06]} Qd1+ {[%emt 0:01:03]} 31. Ka2 {[%emt 0:00:27]} b5 {[%emt 0:00:39]} 32. Nc1 {[%emt 0:01:07]} a5 $15 {[%emt 0:00:33]} 33. dxc4 {[%emt 0:02:27]} dxc4 {[%emt 0:01:48]} 34. Nd3 {[%emt 0:05:40]} b4 {[%emt 0:01:28]} 35. Nf2 {[%emt 0:04:10]} b3+ {[%emt 0:00:00]} 36. Rxb3 {[%emt 0:00:48]} cxb3+ {[%emt 0:00:54]} 37. Qxb3 {[%emt 0:00:22]} Qxd4 {[%emt 0:00:24]} 38. Qb5 {[%emt 0:06:13]} Qxf2 {[%emt 0:02:38]} 39. Qxa5 {[%emt 0:00:19]} Qc5 {[%emt 0:01:16]} 0-1

[Event "1st FIDE Olympiad DIS 2023"]
[Site "Belgrade"]
[Date "2023.02.03"]
[Round "5.1"]
[White "Tazbir, Marcin"]
[Black "Soundarya Kumar Pradhan"]
[Result "1-0"]
[ECO "A14"]
[WhiteElo "2507"]
[BlackElo "1881"]
[Annotator "TA"]
[PlyCount "71"]
[EventDate "2023.01.30"]
[EventType "team-tourn"]
[EventCountry "SRB"]
[SourceTitle "playchess.com"]
[Source "ChessBase"]
[SourceQuality "1"]
[WhiteTeam "Poland"]
[BlackTeam "India"]
[WhiteTeamCountry "POL"]
[BlackTeamCountry "IND"]
[TimeControl "40/5400+30:1800+30"]

{[%evp 14,71,28,24,25,32,22,20,27,14,11,-4,25,-14,0,-23,68,8,66,45,40,39,42,55,71,75,179,165,225,165,198,211,232,206,280,288,308,258,397,410,1994,1979,29975,29976,3633,3550,29976,29977,29977,29978,29978,5602,29990,29991,29991,29992,29992,29993,29993,29994]} 1. c4 {[%emt 0:00:30]} Nf6 {[%emt 0:01:30]} 2. g3 {[%emt 0:00:00]} e6 {[%emt 0:00:00]} 3. Bg2 {[%emt 0:00:00]} d5 {[%emt 0:00:00]} 4. Nf3 {[%emt 0:00:10]} Be7 {[%emt 0:01:13]} 5. O-O {[%emt 0:00:33]} O-O {[%emt 0:00:33]} 6. b3 {[%emt 0:00:57]} Nbd7 {[%emt 0:02:12]} 7. Bb2 {[%emt 0:00:44]} c6 {[%emt 0:02:17]} 8. Qc2 {[%emt 0:00:49]} b5 {[%emt 0:05:15] A14: English Opening: 1...e6 with b3 by White.} 9. d3 {[%emt 0:04:09]} a5 {[%emt 0:09:52] [#]} 10. e4 $146 {[%emt 0:15:42]} ({Predecessor:} 10. Nbd2 a4 11. Rac1 Bb7 12. Rfd1 axb3 13. axb3 c5 14. e4 bxc4 15. bxc4 d4 16. Ra1 Qc7 17. Rxa8 Rxa8 18. Ra1 {½-½ Sale,S (2430)-Plenca,J (2413) CRO Cup Mali Losinj 2018 (4.14)}) 10... Ba6 {[%emt 0:11:30] The position is equal.} 11. e5 {[%emt 0:04:57]} Ne8 {[%emt 0:02:28]} 12. Nbd2 {[%emt 0:00:18]} Nc7 {[%emt 0:04:21]} 13. Rac1 {[%emt 0:10:39]} (13. Nd4 $5 {[%cal Rd4c6]} Bb7 14. f4 $11) 13... Bb7 {[%emt 0:14:04]} 14. Rfe1 {[%emt 0:10:14]} Nc5 {[%emt 0:02:11]} (14... a4 $11) 15. Bf1 {[%emt 0:05:12]} ({Better is} 15. d4 $14 Nd7 16. c5) 15... a4 {[%emt 0:04:42]} (15... N5a6 $11) 16. b4 $1 $14 {[%emt 0:02:45]} N5a6 {[%emt 0:04:28]} 17. a3 {[%emt 0:00:44]} bxc4 {[%emt 0:11:32]} 18. dxc4 {[%emt 0:00:21]} (18. Qxa4 $2 {perishes.} Nxb4 19. Qd1 Nxd3 20. Bxd3 cxd3 $19) 18... dxc4 {[%emt 0:00:00]} 19. Bxc4 {[%emt 0:05:23] White now steadily converts the win.} ({Much weaker is} 19. Nxc4 $6 c5 20. Red1 Qb8 $11) 19... Nd5 {[%emt 0:01:11]} (19... c5 $16) 20. Ne4 $18 {[%emt 0:07:38]} ({Don't do} 20. Qxa4 $6 c5 $14) 20... Nac7 {[%emt 0:10:43]} (20... c5 $142) 21. Nd4 {[%emt 0:01:18]} Qd7 {[%emt 0:03:01]} 22. Bf1 {[%emt 0:02:50]} Rfc8 {[%emt 0:06:16]} 23. Nxc6 {[%emt 0:01:42]} Na6 {[%emt 0:00:39][%cal Rc8c6] Black is weak on the dark squares} 24. Nxe7+ {[%emt 0:02:54]} Nxe7 {[%emt 0:00:04]} 25. Qd2 {[%emt 0:00:56]} Bd5 {[%emt 0:00:19]} (25... Qxd2 {was worth a try.} 26. Nxd2 Rxc1 27. Rxc1 Rc8 28. Rxc8+ Nxc8) 26. Rxc8+ {[%emt 0:05:40]} Nxc8 {[%emt 0:00:24] [#]} (26... Qxc8 $142 27. Nd6 Qb8) 27. Nf6+ $1 {[%emt 0:04:50][%mdl 512]} gxf6 {[%emt 0:00:03]} (27... Kh8 28. Nxd7) 28. exf6 {[%emt 0:00:11]} Kf8 {[%emt 0:00:21]} 29. Qg5 {[%emt 0:00:20] Threatening mate with Qg7+.} Qb7 {[%emt 0:00:23]} 30. Qg7+ {[%emt 0:00:32]} Ke8 {[%emt 0:00:08]} 31. Qg8+ {[%emt 0:00:12][%mdl 64] [#] Deflection} Kd7 {[%emt 0:00:08]} 32. Qxf7+ {[%emt 0:00:08]} Kd6 {[%emt 0:00:17]} 33. Be5+ {[%emt 0:00:31][%cal Bb2e5,Be5d4,Bd4c5][%mdl 32] White mates.} Kc6 {[%emt 0:00:11]} 34. Rc1+ {[%emt 0:00:31]} Kb6 {[%emt 0:00:08]} 35. Bd4+ {[%emt 0:00:06] This pair of bishops is nice.} Nc5 {[%emt 0:00:03]} 36. Bxc5+ {[%emt 0:00:22] Magnificent play by Tazbir!   Weighted Error Value: White=0.10 (very precise) /Black=1.02} 1-0

[Event "1st FIDE Olympiad DIS 2023"]
[Site "Belgrade"]
[Date "2023.02.03"]
[Round "5.1"]
[White "Orsag, Milan"]
[Black "Bjelanovic, Mile"]
[Result "1-0"]
[ECO "E95"]
[WhiteElo "2308"]
[BlackElo "2021"]
[Annotator "TA"]
[PlyCount "73"]
[EventDate "2023.01.30"]
[EventType "team-tourn"]
[EventCountry "SRB"]
[SourceTitle "playchess.com"]
[Source "ChessBase"]
[SourceQuality "1"]
[WhiteTeam "Czech Republic"]
[BlackTeam "Serbia"]
[WhiteTeamCountry "CZE"]
[BlackTeamCountry "SRB"]
[TimeControl "40/5400+30:1800+30"]

{[%evp 22,73,39,32,83,58,90,90,165,165,254,186,215,156,262,200,280,137,241,227,241,239,415,377,408,415,584,579,579,574,542,516,592,585,574,560,612,615,605,611,604,597,608,590,694,702,664,600,604,597,713,711,695,691]} 1. d4 {[%emt 0:00:11]} Nf6 {[%emt 0:00:14]} 2. c4 {[%emt 0:00:22]} d6 {[%emt 0:00:12]} 3. Nf3 {[%emt 0:00:35]} Nbd7 {[%emt 0:00:14]} 4. Nc3 {[%emt 0:00:30]} e5 {[%emt 0:00:50]} 5. e4 {[%emt 0:01:09]} g6 {[%emt 0:00:45]} 6. Be2 {[%emt 0:13:13]} Bg7 {[%emt 0:00:51]} 7. O-O {[%emt 0:00:07]} O-O {[%emt 0:00:14]} 8. Re1 {[%emt 0:00:14]} Re8 {[%emt 0:04:41]} 9. Bf1 {[%emt 0:00:12]} exd4 {[%emt 0:06:27]} 10. Nxd4 {[%emt 0:00:16][%cal Bf3d4,Bd4b5,Bb5c3][%mdl 32]} Nc5 {[%emt 0:00:32]} 11. f3 {[%emt 0:01:48]} a5 {[%emt 0:03:40] 11...c6 is the hot move.} 12. Be3 {[%emt 0:08:10]} Qe7 {[%emt 0:11:15] E95: King's Indian: Classical: 7...Nbd7 8 Re1.} (12... b6 $14) 13. Qd2 {[%emt 0:12:02] [#]} Ne6 $146 {[%emt 0:19:14]} ({Predecessor:} 13... Bd7 14. Rad1 Red8 15. Bg5 c6 16. Nb3 Nxb3 17. axb3 Be8 18. Na4 Qc7 19. Qf2 h6 20. Bf4 {½-½ Santos,A (2263)-Aguiar,H (2107) POR-chT Porto 2013 (6.1)}) 14. Ndb5 {[%emt 0:12:30] White is more active.} Bf8 {[%emt 0:07:03]} (14... Bd7 $16) 15. Rad1 $18 {[%emt 0:09:55]} Qd7 {[%emt 0:11:28]} (15... Bd7 {might work better.} 16. c5 Bxb5 17. Bxb5 Rec8) 16. g3 {[%emt 0:06:01]} Rd8 {[%emt 0:05:20]} 17. Nd5 {[%emt 0:05:20]} Ne8 {[%emt 0:05:52]} (17... Nxd5 $16 {keeps fighting.} 18. cxd5 Ng7) 18. Nbc3 {[%emt 0:02:24]} Bg7 {[%emt 0:02:51]} 19. Bh6 {[%emt 0:01:39]} (19. f4 $18) 19... Bd4+ {[%emt 0:01:41] [#]} (19... Bxh6 $16 20. Qxh6 f6) 20. Kh1 $1 {[%emt 0:00:39] Bh3 would be deadly.} c6 {[%emt 0:00:15] [#]} 21. Bh3 $1 {[%emt 0:04:18][%cal Bf1h3,Bh3d7,Bd7e8,Be8c6][%mdl 32]} b6 $2 {[%emt 0:01:55]} (21... Bxc3 22. Qxc3 (22. Nxc3 b6 $18) 22... cxd5) (21... cxd5 22. exd5) 22. Qxd4 {[%emt 0:04:55]} (22. Bxe6 fxe6 23. Qxd4 cxd5 24. exd5 e5 25. Qxb6 Qh3 $18) 22... Nxd4 {[%emt 0:03:40]} 23. Bxd7 {[%emt 0:00:07]} cxd5 {[%emt 0:02:22] Black is weak on the dark squares} (23... Rxd7 {was necessary.} 24. Nxb6 Nxf3 25. Nxa8 Rb7) 24. Bxe8 {[%emt 0:01:10] White is clearly winning.} ({Weaker is} 24. cxd5 Nxf3 25. Bc6 Nxe1 $14) 24... Nxf3 {[%emt 0:01:33]} 25. Bc6 {[%emt 0:01:46]} Ra7 {[%emt 0:01:56]} 26. Rf1 {[%emt 0:01:08]} dxe4 {[%emt 0:00:31]} 27. Nxe4 {[%emt 0:01:09]} Ne5 {[%emt 0:00:15]} 28. Bd5 {[%emt 0:00:28]} Bb7 {[%emt 0:00:21]} 29. b3 {[%emt 0:02:02]} Bxd5 {[%emt 0:00:24]} 30. Rxd5 {[%emt 0:00:12]} f5 {[%emt 0:00:35]} 31. Bg5 {[%emt 0:00:47]} Rf8 {[%emt 0:00:41]} 32. Nxd6 {[%emt 0:00:42]} Ng4 {[%emt 0:01:01]} 33. h3 {[%emt 0:00:55]} Nf6 {[%emt 0:01:39]} 34. Bxf6 {[%emt 0:00:21]} Rxf6 {[%emt 0:00:01]} 35. Re1 {[%emt 0:00:18]} f4 {[%emt 0:01:35]} 36. Re8+ {[%emt 0:00:10]} Kg7 {[%emt 0:00:16]} 37. Re4 {[%emt 0:00:07] Black did not feel at home in the position after the opening.   Weighted Error Value: White=0.17 (very precise) /Black=0.54} 1-0

[Event "1st FIDE Olympiad DIS 2023"]
[Site "Belgrade"]
[Date "2023.02.03"]
[Round "5.2"]
[White "Shashikant, Kutwal"]
[Black "Molenda, Marcin"]
[Result "0-1"]
[ECO "B57"]
[WhiteElo "2182"]
[BlackElo "2381"]
[Annotator "TA"]
[PlyCount "82"]
[EventDate "2023.01.30"]
[EventType "team-tourn"]
[EventCountry "SRB"]
[SourceTitle "playchess.com"]
[Source "ChessBase"]
[SourceQuality "1"]
[WhiteTeam "India"]
[BlackTeam "Poland"]
[WhiteTeamCountry "IND"]
[BlackTeamCountry "POL"]
[TimeControl "40/5400+30:1800+30"]

{[%evp 15,82,6,29,16,34,0,32,29,38,32,21,25,34,36,26,25,28,0,0,-10,-13,-35,-15,-27,-10,-77,-91,-93,-99,-104,-85,-170,-163,-129,-93,-158,-152,-152,-27,-28,96,108,232,200,214,-9,-9,-21,54,54,69,83,77,-176,-181,-264,-264,-625,-267,-247,-257,-224,-247,-874,-228,-1061,-998,-2235,-1575]} 1. e4 {[%emt 0:00:23]} c5 {[%emt 0:00:06]} 2. Nf3 {[%emt 0:00:11]} d6 {[%emt 0:00:04]} 3. d4 {[%emt 0:00:28]} cxd4 {[%emt 0:00:05]} 4. Nxd4 {[%emt 0:00:04]} Nf6 {[%emt 0:00:05]} 5. Nc3 {[%emt 0:00:05]} Nc6 {[%emt 0:00:04]} 6. Bc4 {[%emt 0:02:42]} Qb6 {[%emt 0:00:12]} 7. Nb3 {[%emt 0:00:40]} e6 {[%emt 0:00:10]} 8. O-O {[%emt 0:01:20]} Be7 {[%emt 0:00:16]} 9. Bd3 {[%emt 0:03:48] B57: Classical Sicilian: Sozin with 6...Qb6.} O-O {[%emt 0:01:27]} 10. a4 {[%emt 0:05:01][%cal Ba2a4,Ba4a5][%mdl 32]} a6 {[%emt 0:06:14]} 11. a5 {[%emt 0:07:32] White is slightly better.} Qc7 {[%emt 0:00:05]} 12. Be3 {[%emt 0:02:29]} Bd7 {[%emt 0:04:51]} 13. f4 {[%emt 0:06:58]} Rac8 {[%emt 0:01:36]} 14. Na4 {[%emt 0:17:11]} Nb4 {[%emt 0:04:37]} 15. Nb6 {[%emt 0:01:01] [#]} Rcd8 $146 {[%emt 0:00:48]} ({Predecessor:} 15... Rce8 16. Kh1 Bc6 17. Qe1 Nxd3 18. cxd3 Nd7 19. Rc1 Nxb6 20. axb6 Qd7 21. Nd4 Rc8 22. f5 Bf6 {1-0 Ruiz Perez,J (1997)-Estrada Perez,J (1818) MEX-ch U26 Merida 2019 (2)}) 16. Qe2 {[%emt 0:07:29]} Bc6 {[%emt 0:04:57]} 17. Bd4 {[%emt 0:03:01]} e5 {[%emt 0:04:06]} 18. Bc3 {[%emt 0:01:36]} Nxd3 {[%emt 0:00:21]} 19. cxd3 {[%emt 0:00:12]} Nd7 {[%emt 0:04:22]} 20. Nxd7 {[%emt 0:03:26]} (20. Nc4 $11 {keeps the balance.}) 20... Qxd7 $17 {[%emt 0:00:59]} 21. Nd2 {[%emt 0:01:02]} d5 {[%emt 0:03:11] Inhibits Nc4.} 22. exd5 {[%emt 0:09:58]} Qxd5 {[%emt 0:00:31]} 23. Nc4 {[%emt 0:07:13]} (23. fxe5 $17 Bc5+ 24. Kh1) 23... exf4 $19 {[%emt 0:07:59]} ({Inferior is} 23... Qxd3 24. Qxd3 Rxd3 25. Nxe5 $11) 24. Rxf4 {[%emt 0:03:31]} Bg5 {[%emt 0:09:20] A strong pair of Bishops.} (24... Qxd3 $2 25. Qxe7 Qg6 26. Rf2 $18) 25. Rg4 {[%emt 0:01:46]} (25. Rd4 $142 Qb5 26. Qf2) 25... f6 $1 $17 {[%emt 0:03:04]} (25... Qxd3 $2 26. Rxg5 f6 27. Qe6+ (27. Qe7 Rf7 $15) 27... Kh8 28. Qe7 $18) 26. Rd4 {[%emt 0:04:48] [#]} Rde8 {[%emt 0:08:33] Black is more active.} (26... Qf5 $1 $17 {...Rxd4 would be deadly.} 27. Rf1 Qg6 28. Rxd8 Rxd8) 27. Qf2 $11 {[%emt 0:01:49]} Qe6 {[%emt 0:00:24]} (27... Qc5 $11) 28. Bb4 $16 {[%emt 0:01:34] And now Re1 would win.} Rf7 {[%emt 0:05:46]} (28... Qe2 $16 {was worth a try.}) 29. Re1 $18 {[%emt 0:00:36]} Qc8 {[%emt 0:00:05] [#]} 30. Rxe8+ {[%emt 0:03:52]} (30. h4 $1 $18 Rxe1+ 31. Qxe1) 30... Qxe8 $11 {[%emt 0:03:24]} 31. h4 {[%emt 0:01:14] aiming for Nd6.} Bh6 {[%emt 0:03:03]} (31... Bc1 $11) 32. Nd6 $14 {[%emt 0:00:13][%csl LRe8,LRf7]} Qe3 {[%emt 0:02:50] Strongly threatening ...Qc1+.} 33. Nxf7 {[%emt 0:00:31]} Kxf7 {[%emt 0:02:23][%cal Bg8f7,Bf7g6,Bg6h5][%mdl 32]} 34. Rd8 $2 {[%emt 0:00:54][%mdl 8192]} (34. Kf1 $16 {stays on course.}) 34... Qc1+ $19 {[%emt 0:00:48]} 35. Qe1 {[%emt 0:00:24]} (35. Kh2 {is a better defense.} Bf4+ 36. Kh3) 35... Qxb2 {[%emt 0:02:51][%csl Gc6][%cal Rb2g2]} 36. Rf8+ {[%emt 0:00:18]} Kg6 {[%emt 0:00:00][%csl Gc6][%cal Rb2g2]} 37. h5+ {[%emt 0:00:33]} Kxh5 {[%emt 0:00:36][%csl Gc6][%cal Rb2g2]} 38. Qd1+ {[%emt 0:00:33]} Kg6 {[%emt 0:00:30][%csl Gc6][%cal Rb2g2]} 39. Qg4+ {[%emt 0:00:29]} Bg5 {[%emt 0:00:01]} 40. Rh8 $2 {[%emt 0:01:41]} (40. Be1) 40... f5 {[%emt 0:02:31]} 41. Qh3 {[%emt 0:30:22]} Qxb4 {[%emt 0:31:24] An entertaining game by Molenda.   Weighted Error Value: White=0.63/Black=0.27 (precise)} 0-1